Cogmind - Beta 12 @@@ ROGUE MODE // 2023.08.07 @ 01:39:12 Player: Phoenix Fei'Ren Result: Destroyed by Y-45 Defender with Heavy Assault Rifle Performance ------------- Evolutions (1) 500 Regions Visited (3) 600 Robots Destroyed (54) 270 Value Destroyed (1360) 1360 Prototype IDs (5) 100 Alien Tech Used (0) 0 Bonus (0) 0 TOTAL SCORE: 2830 Bonus ------- None Cogmind --------- Core Integrity 0/400 Matter 258/300 Energy 257/280 System Corruption 7% Temperature Warm (193) Movement Rolling (120) Ox2 Location -9/Storage Parts ------- > --- POWER (1) -------- Cooled Ion Engine > --- PROPULSION (3) --- Armored Wheel Armored Wheel Armored Wheel > --- UTILITY (3) ------ Huge Storage Unit Visual Processing Unit Light Armor Plating > --- WEAPON (2) ------- Particle Cannon Particle Cannon > --- INVENTORY (25) --- Ion Engine Cooled Ion Engine Cooled Ion Engine Cooled Ion Engine Aluminum Leg Medium Battery (150) Small Matter Pod (0) Medium Matter Pod (0) Large Matter Pod (0) Visual Processing Unit Terrain Scanner Medium Armor Plating Particle Gun Beam Cannon Heavy Assault Rifle Heavy Assault Rifle Heavy Assault Rifle Rocket Launcher Datajack Peak State ------------ > --- POWER ------------ Cooled Ion Engine > --- PROPULSION ------- Armored Wheel Armored Wheel Armored Wheel > --- UTILITY ---------- Huge Storage Unit Visual Processing Unit Light Armor Plating > --- WEAPON ----------- Particle Cannon Particle Cannon > --- INVENTORY -------- Ion Engine Ion Engine Ion Engine Ion Engine Cooled Ion Engine Cooled Ion Engine Cooled Ion Engine Aluminum Leg Medium Battery Small Matter Pod Medium Matter Pod Visual Processing Unit Terrain Scanner Particle Gun Beam Cannon Heavy Assault Rifle Heavy Assault Rifle Heavy Assault Rifle Datajack [Rating: 20] Favorites ----------- Power Ion Engine Engine Ion Engine Power Core Light Nuclear Core Propulsion Light Treads Treads Light Treads Leg Aluminum Leg Wheel Armored Wheel Utility Huge Storage Unit Device Terrain Scanner Storage Huge Storage Unit Processor Signal Interpreter Protection Light Armor Plating Weapon Heavy Assault Rifle Energy Gun Medium Laser Energy Cannon Particle Cannon Ballistic Gun Heavy Assault Rifle Launcher Rocket Launcher Impact Weapon Hammer Special Melee Weapon Datajack Build | -11 -10 -9 -9 ------- Run | Jun Mat Mat Sto Slots Evolved 2 | . . 2 . Power . | . . . . Propulsion 1 | . . 1 . Utility 1 | . . 1 . Weapon . | . . . . Parts Attached 72 | 7 14 19 32 Power 9 | 1 2 4 2 Engine 8 | 1 2 3 2 Core 1 | . . 1 . Reactor . | . . . . Propulsion 15 | 2 2 6 5 Treads 4 | . . 3 1 Leg 4 | 2 2 . . Wheel 7 | . . 3 4 Hover . | . . . . Flight . | . . . . Utility 20 | 1 3 3 13 Device 3 | . . 1 2 Storage 5 | 1 1 . 3 Processor 2 | . . 1 1 Hackware . | . . . . Protection 10 | . 2 1 7 Artifact . | . . . . Weapon 28 | 3 7 6 12 Energy Gun 8 | 2 2 1 3 Energy Cannon 4 | . . . 4 Ballistic Gun 8 | 1 3 2 2 Ballistic Cannon . | . . . . Launcher 5 | . . 2 3 Special Weapon . | . . . . Impact Weapon 2 | . 2 . . Slashing Weapon . | . . . . Piercing Weapon . | . . . . Special Melee Weapon 1 | . . 1 . Unidentified Prototypes 1 | . . . 1 Parts Lost 10 | . . 3 7 Power . | . . . . Propulsion 3 | . . 1 2 Utility 5 | . . 1 4 Weapon 2 | . . 1 1 Highest Loss Streak 3 | . . 2 3 To Critical Strikes . | . . . . Average Slot Usage (%) 93 | . 97 92 92 Engine 8 | . 13 8 6 Core 3 | . . 2 4 Treads 10 | . . 7 14 Leg 6 | . 27 7 . Wheel 10 | . . 11 12 Device 2 | . . 2 4 Storage 11 | . 14 11 11 Processor 6 | . . 11 5 Protection 10 | . 12 8 11 Energy Gun 4 | . 14 . 3 Energy Cannon 4 | . . . 8 Ballistic Gun 10 | . 9 16 8 Launcher 2 | . . 4 2 Naked Turns . | . . . . Heaviest Build 99 | 12 96 98 99 Greatest Support 60 | 20 20 60 60 Greatest Overweight (x) 7 | . 4 7 4 Average Overweight (x) 1 | . 1 2 2 Largest Inventory Capacity 25 | 8 25 25 25 Average Capacity 23 | 7 16 25 25 Most Carried 20 | 5 9 18 20 Average Carried 11 | 2 6 11 13 Final Capacity 25 | 8 25 25 25 Final Carried 19 | 3 9 15 19 Class Distribution -------------------- 77% | Mutant 22% | Scavenger-Mutant Dominant Class ---------------- Mutant | -10/Materials Mutant | -9/Materials Mutant | -9/Storage Resources | -11 -10 -9 -9 ----------- Run | Jun Mat Mat Sto Matter Collected 1805 | 270 65 699 771 Remotely . | . . . . Salvage Created 2044 | 107 49 870 1018 Parts 125 | 7 3 58 57 Haulers Intercepted 1 | . . . 1 Recyclers Shooed 6 | . 1 3 2 Parts Field Recycled . | . . . . Retrieved Matter . | . . . . Parts Self-Destructed . | . . . . Prevented . | . . . . Kills | -11 -10 -9 -9 ------- Run | Jun Mat Mat Sto Combat Hostiles Destroyed 36 | . 2 18 16 Melee 1 | . 1 . . Guns 27 | . . 17 10 Cannons 3 | . . . 3 AOE 4 | . . 1 3 Classes Destroyed 9 | 2 2 3 2 Builder 2 | . . 1 1 Tunneler 2 | 2 . . . Hauler 1 | . . . 1 Recycler 8 | 1 . 2 5 Operator 1 | . . . 1 Watcher 4 | . 1 1 2 Swarmer 9 | . 2 4 3 Grunt 18 | . . 10 8 Sentry 9 | . . 4 5 Best Kill Streak 6 | 3 2 6 3 Combat Bots Only 6 | . 2 6 3 Max Kills in Single Turn 3 | 1 1 2 3 Gunslinging 1 | . . 1 1 Exploded 2 | . . 1 2 Melee 1 | . 1 . . Uniques/NPCs Destroyed . | . . . . Combat | -11 -10 -9 -9 -------- Run | Jun Mat Mat Sto Damage Taken 2702 | . 128 904 1670 Core 462 | . 49 144 269 Absorbed by Shields 92 | . . 92 . Redirected to Shielding 110 | . . 26 84 Regen/Repaired (Parts) 67 | . . . 67 Core Remaining (%) 90 | 100 80 . . Volleys Fired 167 | 5 9 66 87 Largest 2 | 2 2 2 2 Hottest 136 | 90 73 66 136 Shots Fired 318 | 10 10 128 170 Gun 256 | 10 10 126 110 Cannon 43 | . . . 43 Launcher 19 | . . 2 17 Special . | . . . . Kinetic 188 | . 1 126 61 Thermal 92 | 5 9 . 78 Explosive 19 | . . 2 17 Electromagnetic 19 | 5 . . 14 Robot Hit Streak 9 | 3 3 9 9 Robot Miss Streak 4 | 1 1 3 4 Penetration Max . | . . . . Secondary Targets 3 | . . 2 1 Max Gunslinging Chain 1 | . . 1 1 Shots Hit Robots 202 | 6 10 82 104 Core Hits 84 | 3 3 36 42 Critical Kills . | . . . . Critical Parts Destroyed . | . . . . Critical Strikes 1 | . . . 1 Burn 1 | . . . 1 Melee Attacks 6 | . 6 . . Impact 6 | . 6 . . Slashing . | . . . . Piercing . | . . . . Sneak Attacks 1 | . 1 . . Combat Hostiles . | . . . . Follow-up Attacks . | . . . . Damage Inflicted 3626 | 83 197 1237 2109 Guns 2452 | 83 74 1202 1093 Cannons 367 | . . . 367 Explosions 673 | . . 24 649 Melee 119 | . 119 . . Ramming 15 | . 4 11 . Kinetic 1869 | . . 1202 667 Thermal 799 | 26 74 . 699 Explosive 645 | . . 24 621 Electromagnetic 179 | 57 . . 122 Impact 119 | . 119 . . Slashing . | . . . . Piercing . | . . . . Highest Corruption 7 | . 1 3 7 Average Corruption 5 | . 1 2 6 Corruption Purged . | . . . . Corruption Blocked . | . . . . Effects 67 | . 2 13 52 Message Errors 16 | . 1 2 13 Matter Fused 18 | . 1 4 13 Heat Flow Errors 7 | . . 2 5 Energy Discharges 5 | . . 2 3 Parts Rejected 1 | . . . 1 Data Loss (minor) 8 | . . 1 7 Data Loss (major) 4 | . . 1 3 Misfires 2 | . . . 2 Alerts 4 | . . 1 3 Weapon Failures 2 | . . . 2 Overload Shots . | . . . . Overflow Damage 39 | . 29 . 10 Projectiles 2 | . . . 2 Explosions 8 | . . . 8 Melee 29 | . 29 . . Knockbacks . | . . . . Impact . | . . . . Kinetic . | . . . . Secondary . | . . . . Self-Inflicted Damage 133 | . . 5 128 Shots 4 | . . . 4 Rammed 1 | . . 1 . Targets Rammed 3 | . 1 2 . Kicked 2 | . 1 1 . Crushed . | . . . . Highest Temperature 414 | 90 160 212 414 Average Temperature 90 | 36 74 53 101 Received Heat Transfer 782 | . . 359 423 Effects 6 | . . . 6 Interference 2 | . . . 2 Matter Decay 1 | . . . 1 Short Circuit 1 | . . . 1 Damage (minor) 2 | . . . 2 Siege Activations . | . . . . Robots Corrupted . | . . . . Combat Hostiles . | . . . . Parts Fried 3 | . 3 . . Impact Corruptions 2 | . 2 . . Robots Melted . | . . . . Combat Hostiles . | . . . . Parts Melted 2 | . . . 2 Heat Transferred 1840 | 74 222 . 1544 Parts Sabotaged . | . . . . Parts Stolen . | . . . . Parts Stripped . | . . . . Power Chain Reactions 1 | . . . 1 Missiles Intercepted . | . . . . Alert | -11 -10 -9 -9 ------- Run | Jun Mat Mat Sto Peak Influence 298 | 15 96 298 288 Initial 86 | . 9 . 86 Average 131 | 8 36 123 168 Maximum Alert Level 1 | . . 1 1 Low Security (%) 78 | 100 100 76 71 Level 1 21 | . . 23 28 Level 2 . | . . . . Level 3 . | . . . . Level 4 . | . . . . Level 5 . | . . . . High Security . | . . . . Max Security . | . . . . Squads Dispatched 5 | . 1 3 1 Investigation 3 | . 1 1 1 Extermination . | . . . . Reinforcement 2 | . . 2 . Assault . | . . . . Garrison . | . . . . Intercept . | . . . . Searches Triggered . | . . . . Construction Impeded . | . . . . Haulers Reinforced . | . . . . Active Scanning Responses . | . . . . Cargo Convoy Interrupts . | . . . . Stealth | -11 -10 -9 -9 --------- Run | Jun Mat Mat Sto Distress Signals 4 | . 1 2 1 Communications Jammed . | . . . . Distress Signals . | . . . . Times Spotted 55 | . 5 23 27 Peak Tracking Total 6 | . 4 6 4 Tactical Retreats 2 | . 1 . 1 Traps | -11 -10 -9 -9 ------- Run | Jun Mat Mat Sto Traps Triggered 7 | . 2 2 3 Indirectly . | . . . . Trap Hack Attempts . | . . . . Triggered . | . . . . Disarmed . | . . . . Reprogrammed . | . . . . Reused . | . . . . Traps Extracted . | . . . . Installed . | . . . . Triggered . | . . . . Machines | -11 -10 -9 -9 ---------- Run | Jun Mat Mat Sto Machines Disabled 6 | . . 2 4 Max in Single Turn 1 | . . 1 1 Machines Repaired . | . . . . Machines Sabotaged . | . . . . Overloaded Fab Kills . | . . . . Hacking | -11 -10 -9 -9 --------- Run | Jun Mat Mat Sto Machines Accessed 11 | . 2 4 5 Terminals 8 | . 2 3 3 Fabricators . | . . . . Repair Stations 2 | . . 1 1 Recycling Units 1 | . . . 1 Scanalyzers . | . . . . Garrison Access . | . . . . Total Hacks 25 | . 6 8 11 Successful 16 | . 4 5 7 Failed 9 | . 2 3 4 Catastrophic . | . . . . Database Lockouts . | . . . . Manual 2 | . 2 . . Terminals 18 | . 6 6 6 Fabricators . | . . . . Repair Stations 4 | . . 2 2 Recycling Units 3 | . . . 3 Scanalyzers . | . . . . Garrison Access . | . . . . Terminal Hacks 11 | . 4 4 3 Record 7 | . 2 3 2 Prototype ID Bank 2 | . 1 1 . Alert Level 1 | . 1 . . Zone Layout 1 | . . . 1 Fabricator Hacks . | . . . . Repair Station Hacks 3 | . . 1 2 Scan Component 2 | . . 1 1 Repair 1 | . . . 1 Recycling Unit Hacks 2 | . . . 2 Recycle Component 1 | . . . 1 Report Inventory 1 | . . . 1 Scanalyzer . | . . . . Garrison Access Hacks . | . . . . Unauthorized Hacks . | . . . . Terminals . | . . . . Fabricators . | . . . . Repair Stations . | . . . . Recycling Units . | . . . . Scanalyzers . | . . . . Garrison Access . | . . . . Data Cores Recovered 1 | . . . 1 Used 1 | . . . 1 Hacking Detections 11 | . 2 4 5 Full Trace Events 4 | . 2 1 1 Feedback Events 1 | . 1 . . Corruption 1 | . 1 . . Feedback Blocked . | . . . . Robot Schematics Acquired . | . . . . Robots Built . | . . . . Authchips . | . . . . Time . | . . . . Total Robot Build Rating . | . . . . Part Schematics Acquired . | . . . . Parts Built . | . . . . Authchips . | . . . . Time . | . . . . Total Part Build Rating . | . . . . Parts Repaired 1 | . . . 1 Time 26 | . . . 26 Parts Recycled 1 | . . . 1 Recycled Matter . | . . . . Retrieved Matter . | . . . . Retrieved Components . | . . . . Parts Scanalyzed . | . . . . Part Schematics Acquired . | . . . . Parts Damaged . | . . . . Bothacking | -11 -10 -9 -9 ------------ Run | Jun Mat Mat Sto Used RIF Installer . | . . . . Robots Hacked . | . . . . Non-combat . | . . . . Combat . | . . . . Robot Hacks Applied . | . . . . Relay Couplers Released . | . . . . Fabnet Peak Effective % . | . . . . Robots Rewired . | . . . . Allies Hacked . | . . . . Hacks Repelled . | . . . . Allies | -11 -10 -9 -9 -------- Run | Jun Mat Mat Sto Total Allies . | . . . . Largest Group . | . . . . Highest-Rated Group . | . . . . Highest-Rated Ally . | . . . . Total Orders . | . . . . Ally Attacks . | . . . . Total Damage . | . . . . Kills . | . . . . Allies Corrupted . | . . . . Allies Melted . | . . . . Intel | -11 -10 -9 -9 ------- Run | Jun Mat Mat Sto Robot Analysis Total . | . . . . Derelict Logs Recovered . | . . . . Drone Launches . | . . . . Drone Recoveries . | . . . . Exploration | -11 -10 -9 -9 ------------- Run | Jun Mat Mat Sto Turns Passed 3488 | 146 475 994 1873 Spaces Moved 1338 | 106 198 352 682 Core 23 | 22 1 . . Treads 340 | . . 82 258 Legs 343 | 84 197 62 . Wheels 632 | . . 208 424 Hover . | . . . . Flight . | . . . . Fastest Speed 50 | 50 120 120 120 Average Speed 196 | 105 189 205 207 Slowest Speed 480 | 120 400 400 480 Overloaded Moves . | . . . . Propulsion Burnouts . | . . . . Robots Hopped . | . . . . Cave-ins Triggered 1 | . . . 1 Exploration Rate (%) 35 | 6 32 26 76 Regions Visited 3 Branch Regions 1 Pre-discovered Areas . | . . . . Known Exits Taken 1 | . . 1 . Unknown Exits Taken 2 | 1 1 . . Scrap Searched . | . . . . Spaces Dug 13 | . . . 13 Terrain Destroyed 167 | . . 26 141 Melee . | . . . . Projectile . | . . . . AOE 167 | . . 26 141 Terrain Rammed . | . . . . Walls Destroyed . | . . . . Machines Disabled . | . . . . Actions | -11 -10 -9 -9 --------- Run | Jun Mat Mat Sto Total 1873 | 130 278 496 969 Wait 155 | . 16 22 117 Move 1335 | 105 197 351 682 Hop . | . . . . Pick Up 87 | 11 23 22 31 Fast Attach . | . . . . Attach 32 | 6 6 10 10 Detach 3 | . . 3 . Swap 40 | 1 8 9 22 Drop 41 | 2 12 11 16 Fire 167 | 5 9 66 87 Melee 6 | . 6 . . Ram 1 | . . 1 . Kick 2 | . 1 1 . Crush . | . . . . Escape Stasis 4 | . . . 4 Rewire . | . . . . Trap . | . . . . Miscellaneous . | . . . . Route ------- -11/Junkyard -10/Materials -9/Materials (discovered 2 exits: *Min / *Sto) -9/Storage History --------- Turn | Location | Event 4 | -11/Junkyard | Discovered new exit (range 14) 147 | -11/Junkyard | Entered Materials 211 | -10/Materials | Discovered new exit (range 14) 306 | -10/Materials | Build established: Mutant 622 | -10/Materials | Entered another Materials area 622 | -9/Materials | Evolved 2 slots: Propulsion x1, Utility x1 1318 | -9/Materials | Discovered new exit (range 9) 1486 | -9/Materials | Discovered new exit (range 9) 1506 | -9/Materials | Identified exit to Storage 1535 | -9/Materials | Identified exit to Mines 1616 | -9/Materials | Entered Storage 1749 | -9/Storage | Crushed by falling debris 1776 | -9/Storage | Core integrity fell below 50% 2114 | -9/Storage | Lost 3 parts (1n2u) 2373 | -9/Storage | Core integrity fell below 20% 2739 | -9/Storage | Build established: Scavenger-Mutant 2832 | -9/Storage | Repaired Lgt. Armor Plating 3083 | -9/Storage | Build established: Mutant 3489 | -9/Storage | Destroyed by Y-45 Defender with Heavy Assault Rifle Last Messages --------------- 03268_ Acquired Unknown Launcher. 03287_ System corrupted: Substantial component data lost. 03316_ Connecting with Door Terminal... 03318_ 4 TCEOP GZ>6CXBAN4BX 03325_ Triggered Blade Trap. 03325_ Massive razor-sharp blades shoot up from within the floor. 03325_ Arm. Wheel severed. 03327_ Acquired Arm. Wheel. 03342_ B8JHK QJZ|&JHGYO9>V5| 03343_ U-05 Engineer lays Concrete. 03346_ Identified Rocket Launcher. 03350_ Destroyed Terrain Scanner. 03351_ The unstable cave ceiling collapses. 03365_ System corrupted: Substantial component data lost. 03367_ The unstable cave ceiling collapses. 03376_ U-05 Engineer lays Concrete. 03441_ Compression Vault explodes. 03464_ System corrupted: Component data lost. 03480_ System corrupted: Energy discharge (-56). 03480_ Connecting with Terminal... Map ----- +----------------------------------------------------+ | ???????# ########### ########?#??##T # ^^##??? | | ???#???+ #???##??#?# % ####### ^ #??? | | ??#??#?# ########### / #??? | | ???????#= # # # #??? | | #??????#+## # ## # ##??? | | ??????## ^^ ^ |##### #??? | | ?????#?# """ ^ ""T"" ]|###### #??? | | ???????# """ """"" ]]| #### | | ????#??# """ ##"" | | ???????# ##"R | | ??????## #############+#+##### ##" | | #??????# #???#?#?#?# # | | ???#???# # ##????????# ## """ | | ????#??####"Y"# ## ##????#??#?# /## """ | | ???#??????#"""#### #? ?#?#??### ### """ | | ???#??????#####??# #?? ##?#???# ![#?# + | | ????#????????#??## ##""###??#?# #?# # | | ?????????????????# # T#?????# #?# + ! | | ??????????????#?## + #??????# ### # | | ????????#???#????# #####??????# + # | | ?????????????????# #????##?#??# ####+###### | | ????????????#??#?# #??????????# ! # #? | | ?????????#??????## ##?###?????######## """" #? | | ????????????????# ###T###### #?# "??" #? | | ????????????????# #?# "??" #? | | ????????????????# T @ Y #?# "??" #? | | ????????????????# #?# "??" #? | | ????????????????# ########## #?# """" #? | | ????????????????#######???????????+###?# #? | | ???????????????????????????????????????# #? | | ???????????????????????????????????????##########? | | ?????????????????????????????????????????????????? | | ?????????????????????????????????????????????????? | | ?????????????????????????????????????????????????? | | ?????????????????????????????????????????????????? | | ?????????????????????????????????????????????????? | | ?????????????????????????????????????????????????? | | ?????????????????????????????????????????????????? | | | | | | | | | | | | | | | | | | | | | | | | | +----------------------------------------------------+ Best States ------------- Heat Dissipation 28 Energy Generation 14 Energy Capacity 280 Matter Stores 300 Matter Capacity 300 Sight Range 18 Robot Scan Range 14 Terrain Scan Range 14 Terrain Scan Density 10 Armor Coverage 150 Propulsion Shielding 33 Evasion (%) 55 Recoil Reduction 3 Item Schematics ----------------- None Robot Schematics ------------------ None Fabricated ------------ Nothing Alien Tech Used ----------------- None Achievements -------------- Dynamic Key Hey, That's Mine! Loot Pinata Novice Programmer One Hack Too Far Risk Taker Unlikely Earthworm Challenges ------------ None Game ------ Seed HardlightPhysicsCharger Manual? 0 Play Time 00:51:12 Cumulative 6.1 hours Start 2023.08.07 @ 00:49:46 End 2023.08.07 @ 01:39:12 Sessions 1 Manual Loads 0 Difficulty Rogue Special Mode None Game No. 6 Rogue 6 Adventurer 0 Explorer 0 Win Type - Total 0 Types 0/0/0/0/0/0/0/0/0 Lore% 2 Gallery% 8 Achievement% 4 Wizard Run 0 Options --------- ASCII 0 Keyboard 0 Movement Numpad Keybinds 0 Fullscreen 1 Font 18/SmallcapsGlow Map View 76x50 Tactical HUD 1 Map Filters NONE Filters NONE Steam 1 RUN: 3502c4c1-a871-467b-9b9c-b7f927c3623a